Cogmind - Beta 16 @@@ ROGUE MODE // 2025.11.08 @ 23:51:57 Player: Lain Result: Destroyed by Y-45 Defender with Heavy Assault Rifle Performance ------------- Evolutions (2) 1000 Regions Visited (4) 800 Robots Destroyed (39) 195 Value Destroyed (968) 968 Prototype IDs (5) 100 Alien Tech Used (0) 0 Bonus (0) 0 TOTAL SCORE: 3063 Bonus ------- None Cogmind --------- Core Integrity 0/550 Matter 300/300 Energy 100/100 System Corruption 11% Temperature Cool (0) Movement Core (50) Location -8/Materials Parts ------- > --- POWER (2) -------- (None) > --- PROPULSION (4) --- (None) > --- UTILITY (2) ------ Improved Heat Sink > --- WEAPON (3) ------- (None) > --- INVENTORY (5) ---- (None) Peak State ------------ > --- POWER ------------ Heavy Ion Engine Deuterium Engine > --- PROPULSION ------- Wheel Compact Wheel Compact Wheel > --- UTILITY ---------- Improved Light Armor Plating Improved Light Armor Plating > --- WEAPON ----------- Light EM Pulse Cannon Heavy Assault Rifle Improved Light Cannon > --- INVENTORY -------- Deuterium Engine Heavy Assault Rifle Hammer [Rating: 21] Favorites ----------- Power Deuterium Engine Engine Deuterium Engine Propulsion Compact Wheel Treads Improved Treads Leg Aluminum Leg Wheel Compact Wheel Hover Unit Hover Unit Utility Improved Light Armor Plating Device Improved Heat Sink Storage High-capacity Storage Unit Processor Visual Processing Unit Protection Improved Light Armor Plating Weapon Improved Light Cannon Energy Gun Improved Medium Laser Energy Cannon Light EM Pulse Cannon Ballistic Gun Heavy Assault Rifle Ballistic Cannon Improved Light Cannon Launcher Grenade Launcher Impact Weapon Mace Special Melee Weapon Improved Datajack Build | -11 -10 -9 -9 -8 ------- Run | Yrd Mat Mat Min Mat Slots Evolved 4 | . . 2 . 2 Power 1 | . . 1 . . Propulsion 2 | . . 1 . 1 Utility . | . . . . . Weapon 1 | . . . . 1 Parts Attached 46 | . 10 21 2 13 Power 10 | . 2 5 1 2 Engine 10 | . 2 5 1 2 Core . | . . . . . Reactor . | . . . . . Propulsion 11 | . 3 4 1 3 Treads 1 | . . . 1 . Leg 1 | . 1 . . . Wheel 7 | . 1 3 . 3 Hover 2 | . 1 1 . . Flight . | . . . . . Utility 9 | . 2 3 . 4 Device 2 | . 1 . . 1 Storage 1 | . . 1 . . Processor 2 | . 1 . . 1 Hackware . | . . . . . Protection 4 | . . 2 . 2 Artifact . | . . . . . Weapon 16 | . 3 9 . 4 Energy Gun 3 | . 1 2 . . Energy Cannon 1 | . . 1 . . Ballistic Gun 6 | . 1 2 . 3 Ballistic Cannon 2 | . . 2 . . Launcher 1 | . 1 . . . Special Weapon . | . . . . . Impact Weapon 2 | . . 2 . . Slashing Weapon . | . . . . . Piercing Weapon . | . . . . . Special Melee Weapon 1 | . . . . 1 Unidentified Prototypes 2 | . . 1 1 . Parts Lost 25 | . 2 7 . 16 Power 5 | . . 3 . 2 Propulsion 9 | . 1 2 . 6 Utility 4 | . . 1 . 3 Weapon 7 | . 1 1 . 5 Highest Loss Streak 7 | . 2 3 . 7 To Critical Strikes . | . . . . . Average Backups 3 | . . 4 4 1 Power . | . . . 1 . Propulsion . | . . . . . Utility . | . . . . . Weapon 2 | . . 3 3 1 Tool/Special . | . . . . . Unused Backups 1 | . . . 1 . Power . | . . . . . Propulsion . | . . . . . Utility 1 | . . . 1 . Weapon . | . . . . . Tool/Special . | . . . . . Average Slot Usage (%) 67 | . 48 68 100 65 Engine 14 | . 9 16 22 11 Leg 3 | . 1 5 . . Wheel 10 | . 5 7 33 15 Hover 1 | . 1 2 . . Device 1 | . 5 . . 2 Storage 4 | . . 7 . . Processor 2 | . 9 1 . 4 Protection 7 | . . 6 22 9 Energy Gun 5 | . 1 8 . . Energy Cannon 3 | . . 2 11 4 Ballistic Gun 4 | . 4 2 . 8 Ballistic Cannon 4 | . . 4 11 4 Peak Build Rating 21 | . 7 19 20 21 Average Rating 11 | . 4 11 19 15 On Entrance 9 | . . 7 19 19 Avg Prop Armor Cover (%) 3 | . 8 3 3 . Naked Turns 42 | . 42 . . . Heaviest Build 57 | . 8 57 32 34 Greatest Support 48 | 3 10 42 42 48 Greatest Overweight (x) 16 | . 2 16 . 5 Average Overweight (x) 1 | . . 1 . . Largest Inventory Capacity 20 | 5 5 20 5 5 Average Capacity 11 | 5 5 14 5 5 Most Carried 10 | . 2 10 5 5 Average Carried 3 | . . 4 4 1 Final Capacity 5 | 5 5 5 5 5 Final Carried 5 | . 2 5 4 . Class Distribution -------------------- 66% | Mutant 20% | Scavenger-Mutant 8% | Scavenger-Tank 4% | Tank Dominant Class ---------------- Mutant | -10/Materials Mutant | -9/Materials Mutant | -9/Mines Mutant | -8/Materials Resources | -11 -10 -9 -9 -8 ----------- Run | Yrd Mat Mat Min Mat Matter Collected 1236 | 45 56 604 40 491 Remotely . | . . . . . Salvage Created 1423 | . 68 803 . 552 Parts 77 | . 7 44 . 26 Haulers Intercepted . | . . . . . Recyclers Shooed 1 | . . 1 . . Parts Field Recycled . | . . . . . Retrieved Matter . | . . . . . Parts Self-Destructed . | . . . . . Prevented . | . . . . . Parts Restored . | . . . . . Kills | -11 -10 -9 -9 -8 ------- Run | Yrd Mat Mat Min Mat Combat Hostiles Destroyed 27 | . 1 16 . 10 Melee 2 | . 1 . . 1 Guns 13 | . . 5 . 8 Cannons 10 | . . 10 . . AOE 1 | . . 1 . . Classes Destroyed 8 | . 3 4 . 1 Worker 3 | . 1 2 . . Builder 1 | . . 1 . . Recycler 5 | . . 3 . 2 Operator 1 | . . . . 1 Watcher 2 | . 1 1 . . Swarmer 8 | . . 5 . 3 Grunt 14 | . 1 7 . 6 Sentry 5 | . . 4 . 1 Best Kill Streak 4 | . 1 4 . 2 Combat Bots Only 4 | . 1 4 . 2 Max Kills in Single Turn 1 | . 1 1 . 1 Gunslinging . | . . . . . Exploded 1 | . . 1 . . Melee 1 | . 1 . . 1 Uniques/NPCs Destroyed . | . . . . . Combat | -11 -10 -9 -9 -8 -------- Run | Yrd Mat Mat Min Mat Hostile Shots Fired 296 | . 15 154 . 127 Missed 66 | . 5 38 . 23 Hits 230 | . 10 116 . 104 Projectile 230 | . 10 116 . 104 Critical Strikes 5 | . . 2 . 3 Part Disruptions 1 | . . 1 . . Damage Taken 2983 | . 193 1186 . 1604 Core 870 | . 66 246 . 558 Absorbed by Shields . | . . . . . Regen/Repaired (Parts) 64 | . . 27 . 37 Core Remaining (%) 70 | 100 73 . 38 . Volleys Fired 153 | . 14 78 . 61 Largest 3 | . 1 2 . 3 Hottest 112 | . 40 89 . 112 Shots Fired 214 | . 14 115 . 85 Gun 130 | . 6 60 . 64 Cannon 76 | . . 55 . 21 Launcher 8 | . 8 . . . Special . | . . . . . Kinetic 123 | . 5 44 . 74 Thermal 48 | . 1 47 . . Explosive 8 | . 8 . . . Electromagnetic 35 | . . 24 . 11 Robot Hit Streak 11 | . 5 9 . 11 Robot Miss Streak 4 | . 1 4 . 3 Penetration Max . | . . . . . Secondary Targets . | . . . . . Shots Hit Robots 130 | . 6 59 . 65 Core Hits 59 | . 8 23 . 28 Critical Kills . | . . . . . Critical Parts Destroyed 1 | . . . . 1 Critical Strikes 4 | . . 3 . 1 Burn 3 | . . 3 . . Destroy 1 | . . . . 1 Melee Attacks 4 | . . . . 4 Impact . | . . . . . Slashing . | . . . . . Piercing . | . . . . . Sneak Attacks . | . . . . . Combat Hostiles . | . . . . . Follow-up Attacks . | . . . . . Damage Inflicted 2657 | . 238 1213 . 1206 Guns 1300 | . 28 494 . 778 Cannons 990 | . . 666 . 324 Explosions 208 | . 177 31 . . Melee . | . . . . . Ramming 159 | . 33 22 . 104 Kinetic 1441 | . 28 510 . 903 Thermal 398 | . . 398 . . Explosive 177 | . 177 . . . Electromagnetic 482 | . . 283 . 199 Impact . | . . . . . Slashing . | . . . . . Piercing . | . . . . . Highest Corruption 11 | . 7 1 1 11 Average Corruption 2 | . 3 1 1 4 Corruption Purged . | . . . . . Corruption Blocked . | . . . . . Effects 3 | . 1 . 1 1 Message Errors 2 | . . . 1 1 Data Loss (minor) 1 | . 1 . . . Overload Shots . | . . . . . Overflow Damage . | . . . . . Projectiles . | . . . . . Explosions . | . . . . . Melee . | . . . . . Knockbacks 1 | . 1 . . . Impact 1 | . 1 . . . Kinetic . | . . . . . Secondary . | . . . . . Self-Inflicted Damage 122 | . 71 11 . 40 Shots 2 | . 2 . . . Rammed 69 | . 12 1 . 56 Targets Rammed 69 | . 12 1 . 56 Kicked . | . . . . . Crushed . | . . . . . Highest Temperature 685 | . 6 261 . 685 Average Temperature 134 | . 6 78 . 285 Received Heat Transfer 816 | . 60 144 . 612 Effects 33 | . . . . 33 Shutdowns 4 | . . . . 4 Energy Bleed 4 | . . . . 4 Interference 5 | . . . . 5 Matter Decay 9 | . . . . 9 Short Circuit 3 | . . . . 3 Damage (minor) 2 | . . . . 2 Damage (major) 4 | . . . . 4 Damage (core) 2 | . . . . 2 Siege Activations . | . . . . . Martial Activations . | . . . . . Shielding Activations . | . . . . . Robots Disrupted . | . . . . . Combat Hostiles . | . . . . . Robots Corrupted 1 | . . . . 1 Combat Hostiles 1 | . . . . 1 Parts Fried 4 | . . 3 . 1 Impact Corruptions . | . . . . . Robots Melted . | . . . . . Combat Hostiles . | . . . . . Parts Melted 1 | . . 1 . . Heat Transferred 1036 | . . 1036 . . Parts Sabotaged . | . . . . . Parts Stolen . | . . . . . Parts Stripped . | . . . . . Power Chain Reactions 1 | . . 1 . . Alert | -11 -10 -9 -9 -8 ------- Run | Yrd Mat Mat Min Mat Maximum Alert Level 1 | . . 1 . . Low Security (%) 98 | 100 100 98 100 100 Level 1 1 | . . 1 . . Level 2 . | . . . . . Level 3 . | . . . . . Level 4 . | . . . . . Level 5 . | . . . . . High Security . | . . . . . Max Security . | . . . . . Peak Influence 215 | . 27 215 82 80 Initial 82 | . . 3 82 16 Average 28 | . 10 32 66 19 Influence Increases 865 | . 99 459 . 307 Destroy 0b10 Robot/C 540 | . 20 320 . 200 Destroy 0b10 Robot/NC 60 | . 10 35 . 15 Destroy Leader 124 | . 12 72 . 40 Successful Hack 12 | . 5 . . 7 Disable Machine 30 | . . 30 . . Destroy Structure 54 | . 52 2 . . Lose Combat Pursuer 45 | . . . . 45 Influence Decreases 849 | . 89 257 170 333 Entered New Map 163 | . . 7 130 26 Time Decay 524 | . 70 234 40 180 Lost Part 162 | . 19 16 . 127 Squads Dispatched 4 | . 1 2 . 1 Investigation 1 | . . . . 1 Extermination . | . . . . . Reinforcement 3 | . 1 2 . . Assault . | . . . . . Garrison . | . . . . . Intercept . | . . . . . Searches Triggered . | . . . . . Construction Impeded . | . . . . . Haulers Reinforced . | . . . . . Active Scanning Responses . | . . . . . Cargo Convoy Interrupts . | . . . . . Stealth | -11 -10 -9 -9 -8 --------- Run | Yrd Mat Mat Min Mat Distress Signals 4 | . . 3 . 1 Communications Jammed . | . . . . . Distress Signals . | . . . . . Times Spotted 53 | . 4 28 . 21 Peak Tracking Total 6 | . 1 6 . 6 Tactical Retreats 2 | . . . . 2 Traps | -11 -10 -9 -9 -8 ------- Run | Yrd Mat Mat Min Mat Traps Triggered 2 | . . 1 . 1 Indirectly . | . . . . . Trap Hack Attempts . | . . . . . Triggered . | . . . . . Disarmed . | . . . . . Reprogrammed . | . . . . . Reused . | . . . . . Traps Extracted . | . . . . . Installed . | . . . . . Triggered . | . . . . . Machines | -11 -10 -9 -9 -8 ---------- Run | Yrd Mat Mat Min Mat Machines Disabled 2 | . . 2 . . Max in Single Turn 1 | . . 1 . . Machines Repaired . | . . . . . Machines Dismantled . | . . . . . Machines Sabotaged . | . . . . . Overloaded Fab Kills . | . . . . . Hacking | -11 -10 -9 -9 -8 --------- Run | Yrd Mat Mat Min Mat Machines Accessed 9 | . 1 5 . 3 Terminals 6 | . 1 3 . 2 Fabricators . | . . . . . Repair Stations 2 | . . 1 . 1 Recycling Units . | . . . . . Scanalyzers 1 | . . 1 . . Garrison Access . | . . . . . Total Hacks 28 | . 1 17 . 10 Successful 17 | . 1 10 . 6 Failed 11 | . . 7 . 4 Catastrophic 1 | . . 1 . . Database Lockouts . | . . . . . Manual . | . . . . . Terminals 12 | . 1 7 . 4 Fabricators . | . . . . . Repair Stations 8 | . . 2 . 6 Recycling Units . | . . . . . Scanalyzers 8 | . . 8 . . Garrison Access . | . . . . . Terminal Hacks 6 | . 1 2 . 3 Prototype ID Bank 2 | . . 1 . 1 Branch Access Points 1 | . . . . 1 Emergency Access Points 1 | . . . . 1 Alert Level 1 | . . 1 . . Hauler Manifests 1 | . 1 . . . Fabricator Hacks . | . . . . . Repair Station Hacks 5 | . . 2 . 3 Scan Component 3 | . . 1 . 2 Repair 2 | . . 1 . 1 Recycling Unit Hacks . | . . . . . Scanalyzer 6 | . . 6 . . Insert Component 1 | . . 1 . . Analyze 1 | . . 1 . . Retrieve Study 4 | . . 4 . . Garrison Access Hacks . | . . . . . Unauthorized Hacks . | . . . . . Terminals . | . . . . . Fabricators . | . . . . . Repair Stations . | . . . . . Recycling Units . | . . . . . Scanalyzers . | . . . . . Garrison Access . | . . . . . Data Cores Recovered 1 | . . . . 1 Used . | . . . . . Hacking Detections 5 | . . 4 . 1 Full Trace Events 1 | . . 1 . . Feedback Events . | . . . . . Feedback Blocked . | . . . . . Robot Schematics Acquired . | . . . . . Robots Built . | . . . . . Authchips . | . . . . . Time . | . . . . . Total Robot Build Rating . | . . . . . Part Schematics Acquired 1 | . . 1 . . Parts Built . | . . . . . Authchips . | . . . . . Time . | . . . . . Total Part Build Rating . | . . . . . Part Studies Acquired 2 | . . 2 . . Parts Repaired 2 | . . 1 . 1 Time 68 | . . 32 . 36 Parts Recycled . | . . . . . Recycled Matter . | . . . . . Retrieved Matter . | . . . . . Retrieved Components . | . . . . . Parts Scanalyzed 1 | . . 1 . . Part Schematics Acquired 1 | . . 1 . . Parts Damaged . | . . . . . Bothacking | -11 -10 -9 -9 -8 ------------ Run | Yrd Mat Mat Min Mat Used RIF Installer . | . . . . . Robots Hacked 2 | . . . . 2 Non-combat . | . . . . . Combat 2 | . . . . 2 Robot Hacks Applied 2 | . . . . 2 parse_system 2 | . . . . 2 Relay Couplers Released . | . . . . . Fabnet Peak Effective % . | . . . . . Robots Rewired . | . . . . . Allies Hacked . | . . . . . Hacks Repelled . | . . . . . Allies | -11 -10 -9 -9 -8 -------- Run | Yrd Mat Mat Min Mat Total Allies . | . . . . . Largest Group . | . . . . . Highest-Rated Group . | . . . . . Highest-Rated Ally . | . . . . . Total Orders . | . . . . . Ally Attacks . | . . . . . Total Damage . | . . . . . Kills . | . . . . . Allies Corrupted . | . . . . . Allies Melted . | . . . . . Intel | -11 -10 -9 -9 -8 ------- Run | Yrd Mat Mat Min Mat Active Infowar (turns) 390 | . 160 230 . . Optics 356 | . 127 229 . . Seismic 131 | . 86 45 . . Robot Analysis Total . | . . . . . Derelict Logs Recovered 1 | . . . 1 . Drone Launches . | . . . . . Drone Recoveries . | . . . . . Exploration | -11 -10 -9 -9 -8 ------------- Run | Yrd Mat Mat Min Mat Turns Passed 2632 | 11 233 1635 81 672 Spaces Moved 1435 | 21 255 648 86 425 Core 239 | 21 123 6 . 89 Treads . | . . . . . Legs 185 | . 17 168 . . Wheels 922 | . 91 409 86 336 Hover 89 | . 24 65 . . Flight . | . . . . . Fastest Speed 50 | 50 50 86 86 50 Average Speed 145 | 50 67 213 88 103 Slowest Speed 850 | 50 150 850 90 300 Overloaded Moves . | . . . . . Propulsion Burnouts . | . . . . . Robots Hopped . | . . . . . Potential Cave-ins . | . . . . . Cave-ins Triggered . | . . . . . Exploration Rate (%) 30 | 3 31 43 38 36 Regions Visited 4 Branch Regions 1 Pre-discovered Areas 1 | . . . 1 . Known Exits Taken . | . . . . . Unknown Exits Taken 4 | 1 1 1 1 . Scrap Searched 1 | . . . 1 . Spaces Dug . | . . . . . Terrain Destroyed 59 | . 58 1 . . Melee . | . . . . . Projectile 1 | . . 1 . . AOE 58 | . 58 . . . Terrain Rammed . | . . . . . Walls Destroyed . | . . . . . Machines Disabled . | . . . . . Actions | -11 -10 -9 -9 -8 --------- Run | Yrd Mat Mat Min Mat Total 1775 | 20 296 788 91 580 Wait 4 | . 4 . . . Move 1431 | 20 254 647 85 425 Hop . | . . . . . Pick Up 39 | . 1 26 1 11 Fast Attach 11 | . 9 1 . 1 Attach 25 | . . 14 1 10 Detach 2 | . . 2 . . Swap 17 | . 1 9 2 5 Drop 20 | . 1 10 2 7 Fire 153 | . 14 78 . 61 Melee 4 | . . . . 4 Ram 69 | . 12 1 . 56 Kick . | . . . . . Crush . | . . . . . Escape Stasis . | . . . . . Rewire . | . . . . . Trap . | . . . . . Miscellaneous . | . . . . . Route ------- -11/Scrapyard -10/Materials -9/Materials (discovered 2 exits: *Mat / [*Min]) -9/Mines -8/Materials History --------- Turn | Location | Event 3 | -11/Scrapyard | Discovered new exit (range 15) 12 | -11/Scrapyard | Entered Materials 140 | -10/Materials | Discovered new exit (range 17) 245 | -10/Materials | Entered another Materials area 245 | -9/Materials | Evolved 2 slots: Power x1, Propulsion x1 1044 | -9/Materials | Lost 3 parts (2p1n) 1208 | -9/Materials | Core integrity fell below 50% 1268 | -9/Materials | Build established: Mutant 1596 | -9/Materials | Repaired Lgt. EM Pulse Cannon? 1696 | -9/Materials | Discovered new exit (range 3) 1872 | -9/Materials | Discovered new exit (range 9) 1880 | -9/Materials | Entered Mines 1912 | -9/Mines | Learned location of Storage (-7) 1954 | -9/Mines | Discovered new exit (range 8) 1956 | -9/Mines | Assembled infested the area 1961 | -9/Mines | Assisted by a Guerilla fighting off Assembled 1961 | -9/Mines | Entered Materials 1961 | -8/Materials | Evolved 2 slots: Propulsion x1, Weapon x1 2067 | -8/Materials | Repaired Broken Wheel? 2339 | -8/Materials | Lost 7 parts (1p3n1u2w) 2370 | -8/Materials | Core integrity fell below 50% 2613 | -8/Materials | Core integrity fell below 20% 2624 | -8/Materials | System corruption reached 10% 2633 | -8/Materials | Destroyed by Y-45 Defender with Heavy Assault Rifle Last Messages --------------- 02607_ Slammed into S-10 Pest. 02607_ Imp. Targeting Computer broken. 02607_ Destabilizing: Short circuit. 02608_ Slammed into S-10 Pest. 02617_ Broken Imp. Targeting Computer destroyed. 02617_ System corrupted by crushing effect (+2). 02617_ Destabilizing: Core damaged (-5). 02618_ Slammed into S-10 Pest. 02620_ SFF CAFTIVQ,OMS5QZTLLB 3YR63 02620_ Slammed into S-10 Pest. 02620_ S-10 Pest destroyed. 02622_ Slammed into Y-45 Defender. 02622_ Destabilizing: System corrupted (+1). 02623_ Slammed into Y-45 Defender. 02623_ Destabilizing: System corrupted (+2). 02624_ Slammed into Y-45 Defender. 02627_ Com. Wheel+ destroyed. 02627_ Slammed into Y-45 Defender. 02630_ Critical hit (Burn: +37). 02630_ Slammed into Y-45 Defender. Map ----- +----------------------------------------------------+ | ??????????????????????????????????????? | | ??????????????????????????????????????? | | ??????????????????????????????????????? | | ??????????????????????????????????????? | | ??????????????????????????????????????? | | ??????????????????????????????????????? | | ?????????????????##???????????????????? | | ?????????????????# ??????????????????? | | ?????????????????+ ??????????????????? | | ?????????????????# ??????????????????? | | ?????????????????# #?????????????????? | | ?????????????????# #?????????????????? | | ?????????????????# #?????????????????? | | ?????????????????# #?????????????????? | | ?????????????????+ #????####?????????? | | ?????????????????# #????# #?????????? | | ?????????######### ##???# #?????????? | | ?????????# # ##### +?????????? | | ?????????# """ #! % % #?????????? | | ?????????# """ # T % % %% #?????????? | | ?????????# """ # %#####+#######????? | | ?????????# ## %##??#%%%[% #????? | | ?????????#! % [%##% #???# m=%""" #????? | | ???????########+## %#???# %*""" #????? | | ######## %%*%%%%#???# Y%%""" #????? | | !! %%%% %#???#@ % % #????? | | ##########+####+#####???# %%% #????? | | ?????# # ??????#%"Y" #????? | | #????#""" # """" #????# """ [ #???? | | #????#""" # """" #????# ##???? | | #????#""" ! # """" #????##########????? | | #????# # #??????????????????? | | #????# # #??????????????????? | | #????###############??????????????????? | | #?????????????????????????????????????? | | #?????????????????????????????????????? | | ??????????????????????????????????????? | | ??????????????????????????????????????? | | ??????????????????????????????????????? | | ??????????????????????????????????????? | | ??????????????????????????????????????? | | ??????????????????????????????????????? | | ??????????????????????????????????????? | | ??????????????????????????????????????? | | ??????????????????????????????????????? | | ??????????????????????????????????????? | | ??????????????????????????????????????? | | ??????????????????????????????????????? | | ??????????????????????????????????????? | | ??????????????????????????????????????? | +----------------------------------------------------+ Best States ------------- Heat Dissipation 45 Energy Generation 23 Energy Capacity 455 Matter Stores 300 Matter Capacity 300 Sight Range 18 Terrain Scan Density 10 Armor Coverage 300 Evasion (%) 55 Targeting Accuracy 6 Item Schematics ----------------- Hvy. Assault Rifle | -9/Materials | Scanalyzed Robot Schematics ------------------ None Fabricated ------------ Nothing Repaired ---------- Lgt. EM Pulse Cannon | 61% | -9/Materials Wheel | 7% | -8/Materials | Broken Studied --------- Com. Wheel | -9/Materials | Hacked Hvy. Assault Rifle | -9/Materials | Hacked Alien Tech Used ----------------- None Achievements -------------- DATA ERROR: Steam Global Achievement% For Emergencies Only I Have A Map? Item+ Oops Organ Harvest Spot Them First There's More Where That Came From Well Done Challenges ------------ None Game ------ Seed HeatCloakStripper Manual? 0 Play Time 00:43:32 Cumulative 8.5 hours Start 2025.11.08 @ 19:19:52 End 2025.11.08 @ 23:51:57 Sessions 1 Manual Loads 0 Difficulty Rogue Special Mode None Game No. 15 Rogue 10 Adventurer 5 Explorer 0 Win Type - Total 0 Types 0/0/0/0/0/0/0/0/0/0 Lore% 6 Gallery% 12 Achievement% 9 Wizard Run 0 Options --------- Layout 0 ASCII 1 Keyboard 0 Movement Mouse Keybinds 0 Fullscreen 1 Font 18/SmallcapsGlow Map View 76x50 Zoom Use 0% Tactical HUD 1 Map Filters NONE Filters NONE Steam 1 RUN: 3e143ce4-0219-41c6-a8c1-39a3525ed878